Cogmind - Beta 10.2 @@@ ROGUE MODE // 2021.04.23 @ 15:30:46 Player: Cinquain Result: Destroyed by G-67 Veteran with Plasma Rifle Performance ------------- Evolutions (7) 3500 Regions Visited (8) 1600 Robots Destroyed (146) 730 Value Destroyed (4876) 4876 Prototype IDs (8) 160 Alien Tech Used (0) 0 Bonus (232) 232 TOTAL SCORE: 11098 Bonus ------- High Alert Combat Kills 232 Cogmind --------- Core Integrity 0/1300 Matter 31/300 Energy 100/100 System Corruption 9% Temperature Cool (0) Movement Core (50) Location -3/Research Parts ------- > --- POWER (3) -------- (None) > --- PROPULSION (8) --- (None) > --- UTILITY (8) ------ Improved Signal Interpreter > --- WEAPON (2) ------- (None) > --- INVENTORY (4) ---- Antimatter Reactor System Shield Disruptor Cannon Hellfire Missile Launcher Peak State ------------ > --- POWER ------------ Light Nuclear Core Light Nuclear Core Antimatter Reactor > --- PROPULSION ------- Improved Antigrav System Improved Antigrav System Improved Antigrav System Improved Antigrav System Improved Antigrav System Improved Flight Unit Nuclear Pulse Array > --- UTILITY ---------- Power Amplifier Advanced Sensor Array Improved Signal Interpreter Improved Light Armor Plating Hacking Suite Hacking Suite Hacking Suite > --- WEAPON ----------- Gauss Cannon Chainsword > --- INVENTORY -------- VTOL Module Improved Flight Unit System Shield Heavy Missile Launcher [Rating: 94] Favorites ----------- Power Heavy Ion Engine Engine Heavy Ion Engine Power Core Light Nuclear Core Reactor Antimatter Reactor Propulsion Carbon-fiber Leg Treads Light Treads Leg Carbon-fiber Leg Hover Unit Improved Antigrav System Flight Unit Improved Flight Unit Utility Large Storage Unit Device Advanced Sensor Array Storage Large Storage Unit Processor Signal Interpreter Hackware Hacking Suite Protection Improved Light Armor Plating Weapon Precision Assault Rifle Energy Gun Particle Gun Energy Cannon Advanced Beam Cannon Ballistic Gun Precision Assault Rifle Ballistic Cannon Light Cannon Launcher Improved Grenade Launcher Special Weapon Mining Laser Impact Weapon Mace Slashing Weapon Chainsword Build | -11 -10 -9 -8 -7 -6 -5 -4 -3 ------- Run | Scr Mat Mat Mat Fac Fac Fac Fac Res Slots Evolved 14 | . . 2 2 2 2 2 2 2 Power 2 | . . . . 1 . . . 1 Propulsion 6 | . . . 2 1 . 1 1 1 Utility 6 | . . 2 . . 2 1 1 . Weapon . | . . . . . . . . . Parts Attached 119 | 6 7 20 16 34 16 1 2 17 Power 18 | 1 1 3 . 6 3 . 1 3 Engine 10 | 1 1 3 . 3 2 . . . Core 6 | . . . . 3 1 . 1 1 Reactor 2 | . . . . . . . . 2 Propulsion 42 | 2 3 3 8 12 5 . 1 8 Treads 9 | . . 3 4 2 . . . . Leg 20 | 2 3 . 4 10 1 . . . Wheel . | . . . . . . . . . Hover 5 | . . . . . . . . 5 Flight 8 | . . . . . 4 . 1 3 Utility 19 | 1 2 4 1 4 5 1 . 1 Device 2 | . . . . . 1 1 . . Storage 9 | 1 . 4 1 3 . . . . Processor 4 | . 2 . . 1 1 . . . Hackware 3 | . . . . . 3 . . . Protection 1 | . . . . . . . . 1 Artifact . | . . . . . . . . . Weapon 40 | 2 1 10 7 12 3 . . 5 Energy Gun 2 | . . 1 . 1 . . . . Energy Cannon 1 | . . 1 . . . . . . Ballistic Gun 16 | 2 1 2 2 7 1 . . 1 Ballistic Cannon 8 | . . 2 2 2 1 . . 1 Launcher 10 | . . 2 3 2 . . . 3 Special Weapon 1 | . . 1 . . . . . . Impact Weapon 1 | . . 1 . . . . . . Slashing Weapon 1 | . . . . . 1 . . . Piercing Weapon . | . . . . . . . . . Special Melee Weapon . | . . . . . . . . . Unidentified Prototypes 7 | . . 3 . 2 1 . . 1 Parts Lost 36 | . . 5 1 12 2 . . 16 Power 6 | . . 1 . 3 . . . 2 Propulsion 14 | . . 1 1 6 2 . . 4 Utility 6 | . . . . . . . . 6 Weapon 10 | . . 3 . 3 . . . 4 Highest Loss Streak 8 | . . 3 1 2 2 . . 8 Average Slot Usage (%) 86 | . 94 90 96 93 80 52 52 55 Engine 8 | . 14 10 9 10 6 . . . Core 1 | . . . . 2 3 5 4 5 Treads 7 | . . 10 21 4 2 . . . Leg 15 | . 28 8 10 30 9 . . . Flight 2 | . . . . . 13 11 11 15 Device 1 | . . . . . 3 5 10 6 Storage 20 | . 14 28 27 23 12 . . . Processor 8 | . 9 11 9 7 7 5 5 4 Hackware 2 | . . . . . 9 17 15 12 Ballistic Gun 9 | . 28 8 8 11 3 . . . Ballistic Cannon 3 | . . 6 6 1 2 . . . Launcher 1 | . . 2 1 . . . . . Naked Turns . | . . . . . . . . . Heaviest Build 75 | 13 15 57 59 75 67 10 10 41 Greatest Support 90 | 20 20 40 83 90 58 11 17 85 Greatest Overweight (x) 5 | 1 . 2 3 3 3 . . 5 Average Overweight (x) . | . . 1 . . . . . . Largest Inventory Capacity 20 | 6 6 20 20 20 20 4 4 4 Average Capacity 15 | 5 6 17 20 20 13 4 4 4 Most Carried 20 | 6 6 16 20 20 20 4 4 4 Average Carried 13 | 4 5 11 19 19 13 4 4 3 Final Capacity 20 | 6 6 20 20 20 4 4 4 4 Final Carried 20 | 6 6 16 20 20 4 4 4 4 Class Distribution -------------------- 67% | Hauler-Mutant 16% | Mutant 11% | Hacker-Sprinter 4% | Hacker-Mutant Dominant Class ---------------- Mutant | -10/Materials Hauler-Mutant | -9/Materials Hauler-Mutant | -8/Materials Hauler-Mutant | -7/Factory Hacker-Sprinter | -6/Factory Hacker-Mutant | -5/Factory Hacker-Mutant | -4/Factory Hacker-Sprinter | -3/Research Resources | -11 -10 -9 -8 -7 -6 -5 -4 -3 ----------- Run | Scr Mat Mat Mat Fac Fac Fac Fac Res Matter Collected 3672 | 192 310 745 527 1158 192 171 69 308 Remotely . | . . . . . . . . . Salvage Created 4558 | . 366 984 811 1653 135 . 211 398 Parts 282 | . 30 61 57 92 7 . 7 28 Haulers Intercepted 16 | . . 5 3 4 1 . 2 1 Recyclers Shooed 3 | . . . . 2 . . . 1 Parts Field Recycled . | . . . . . . . . . Retrieved Matter . | . . . . . . . . . Parts Self-Destructed . | . . . . . . . . . Prevented . | . . . . . . . . . Kills | -11 -10 -9 -8 -7 -6 -5 -4 -3 ------- Run | Scr Mat Mat Mat Fac Fac Fac Fac Res Combat Hostiles Destroyed 109 | . 9 26 22 35 1 . . 16 Guns 46 | . 9 9 7 20 1 . . . Cannons 22 | . . 9 7 3 . . . 3 AOE 41 | . . 8 8 12 . . . 13 Classes Destroyed 14 | . 5 5 2 1 . . . 1 Worker 7 | . . 1 3 2 . . . 1 Builder 5 | . . 1 2 . . . . 2 Tunneler 1 | . 1 . . . . . . . Hauler 16 | . . 5 3 4 1 . 2 1 Recycler 1 | . . . . . . . . 1 Operator 4 | . 1 1 1 1 . . . . Watcher 3 | . 1 1 . 1 . . . . Swarmer 31 | . 3 4 7 7 . . . 10 Grunt 47 | . 6 14 10 17 . . . . Brawler 2 | . . 1 . 1 . . . . Duelist 2 | . . . 1 1 . . . . Sentry 15 | . . 7 3 5 . . . . Hunter 2 | . . . 1 . 1 . . . Programmer 10 | . . . . 4 . . . 6 Best Kill Streak 14 | . 4 5 6 9 1 . 1 14 Combat Bots Only 10 | . 3 4 5 7 1 . . 10 Max Kills in Single Turn 4 | . 1 4 3 4 1 . 1 4 Gunslinging . | . . . . . . . . . Exploded 4 | . . 3 2 3 . . . 4 Melee . | . . . . . . . . . Uniques/NPCs Destroyed . | . . . . . . . . . Combat | -11 -10 -9 -8 -7 -6 -5 -4 -3 -------- Run | Scr Mat Mat Mat Fac Fac Fac Fac Res Damage Taken 8451 | . 416 1388 994 2898 153 47 . 2555 Core 2078 | . 42 295 102 259 41 23 . 1316 Absorbed by Shields . | . . . . . . . . . Core Remaining (%) 80 | 100 83 26 81 63 95 97 100 . Volleys Fired 325 | . 32 85 58 101 4 . . 45 Largest 2 | . 2 2 2 2 2 . . 2 Hottest 135 | . 40 135 80 93 76 . . 90 Shots Fired 566 | . 64 152 111 182 8 . . 49 Gun 355 | . 64 74 50 158 4 . . 5 Cannon 157 | . . 59 49 13 4 . . 32 Launcher 43 | . . 8 12 11 . . . 12 Special 11 | . . 11 . . . . . . Kinetic 501 | . 64 129 99 164 8 . . 37 Thermal 22 | . . 15 . 7 . . . . Explosive 43 | . . 8 12 11 . . . 12 Electromagnetic . | . . . . . . . . . Robot Hit Streak 33 | . 10 14 23 33 7 . . 8 Robot Miss Streak 4 | . 4 4 2 3 . . . 3 Penetration Max . | . . . . . . . . . Secondary Targets 1 | . . 1 . . . . . . Max Gunslinging Chain 1 | . . 1 . . . . . . Shots Hit Robots 402 | . 41 104 69 143 6 . 2 37 Core Hits 260 | . 20 47 54 89 3 . 2 45 Critical Hits 11 | . . . 3 2 1 . . 5 Critical Kills 4 | . . . 1 2 1 . . . Critical Parts Destroyed 7 | . . . 2 . . . . 5 Melee Attacks 28 | . . 6 . . 2 . 2 18 Impact 6 | . . 6 . . . . . . Slashing 22 | . . . . . 2 . 2 18 Piercing . | . . . . . . . . . Sneak Attacks 5 | . . . . . . . 2 3 Combat Hostiles . | . . . . . . . . . Follow-up Attacks . | . . . . . . . . . Damage Inflicted 12815 | . 519 2291 2119 4029 123 . 226 3508 Guns 4501 | . 519 759 521 2600 77 . . 25 Cannons 2459 | . . 688 737 196 46 . . 792 Explosions 4914 | . . 633 861 1233 . . . 2187 Melee 773 | . . 43 . . . . 226 504 Ramming . | . . . . . . . . . Kinetic 6837 | . 519 1417 1258 2703 123 . . 817 Thermal 487 | . . 198 . 289 . . . . Explosive 4718 | . . 633 861 1037 . . . 2187 Electromagnetic . | . . . . . . . . . Impact 43 | . . 43 . . . . . . Slashing 730 | . . . . . . . 226 504 Piercing . | . . . . . . . . . Highest Corruption 9 | . 1 1 2 7 . . . 9 Average Corruption 4 | . 1 1 2 5 . . . 6 Corruption Purged . | . . . . . . . . . Effects 77 | . . 6 . 57 . . . 14 Message Errors 20 | . . 4 . 12 . . . 4 Matter Fused 16 | . . . . 13 . . . 3 Heat Flow Errors 8 | . . . . 7 . . . 1 Energy Discharges 15 | . . 1 . 11 . . . 3 Data Loss (minor) 7 | . . 1 . 5 . . . 1 Data Loss (major) 3 | . . . . 3 . . . . Targeting Errors 7 | . . . . 6 . . . 1 Weapon Failures 1 | . . . . . . . . 1 Overload Shots . | . . . . . . . . . Overflow Damage 491 | . . 38 17 121 . . . 315 Projectiles 74 | . . 24 3 . . . . 47 Explosions 298 | . . 14 14 121 . . . 149 Melee 119 | . . . . . . . . 119 Knockbacks 30 | . . 3 11 2 1 . . 13 Impact . | . . . . . . . . . Kinetic 26 | . . 3 7 2 1 . . 13 Secondary 4 | . . . 4 . . . . . Self-Inflicted Damage 243 | . . . . 218 . . . 25 Shots 8 | . . . . 7 . . . 1 Rammed . | . . . . . . . . . Targets Rammed . | . . . . . . . . . Kicked . | . . . . . . . . . Crushed . | . . . . . . . . . Highest Temperature 285 | . 3 80 21 285 6 . . 193 Average Temperature 53 | . 2 23 8 83 3 . . 72 Received Heat Transfer 2172 | . 210 516 369 807 51 9 . 210 Effects 3 | . . . . 3 . . . . Interference 3 | . . . . 3 . . . . Siege Activations . | . . . . . . . . . Robots Corrupted . | . . . . . . . . . Combat Hostiles . | . . . . . . . . . Parts Fried . | . . . . . . . . . Impact Corruptions 1 | . . . 1 . . . . . Robots Melted . | . . . . . . . . . Combat Hostiles . | . . . . . . . . . Parts Melted 1 | . . . . 1 . . . . Heat Transferred 746 | . . 424 . 322 . . . . Parts Sabotaged . | . . . . . . . . . Parts Stolen . | . . . . . . . . . Parts Stripped . | . . . . . . . . . Power Chain Reactions . | . . . . . . . . . Missiles Intercepted . | . . . . . . . . . Alert | -11 -10 -9 -8 -7 -6 -5 -4 -3 ------- Run | Scr Mat Mat Mat Fac Fac Fac Fac Res Peak Influence 736 | . 252 467 546 736 432 169 112 532 Initial 360 | . . 27 176 197 360 133 82 58 Average 243 | . 93 245 256 279 369 153 93 244 Maximum Alert Level 3 | . 1 2 2 3 2 . . 2 Low Security (%) 45 | 100 84 41 38 40 . 100 100 51 Level 1 34 | . 15 32 50 44 36 . . 19 Level 2 19 | . . 26 10 12 63 . . 28 Level 3 . | . . . . 1 . . . . Level 4 . | . . . . . . . . . Level 5 . | . . . . . . . . . High Security . | . . . . . . . . . Max Security . | . . . . . . . . . Squads Dispatched 25 | . 1 6 5 8 1 . 1 3 Investigation 6 | . . 4 2 . . . . . Extermination 5 | . . . . 2 . . 1 2 Reinforcement 9 | . 1 2 2 3 . . . 1 Assault 1 | . . . . . 1 . . . Garrison 4 | . . . 1 3 . . . . Intercept . | . . . . . . . . . Construction Impeded 1 | . . . . . . . . 1 Haulers Reinforced 1 | . . . . 1 . . . . Stealth | -11 -10 -9 -8 -7 -6 -5 -4 -3 --------- Run | Scr Mat Mat Mat Fac Fac Fac Fac Res Distress Signals 12 | . 3 3 1 4 . . . 1 Communications Jammed . | . . . . . . . . . Distress Signals . | . . . . . . . . . Times Spotted 203 | . 19 50 35 53 7 1 2 36 Peak Tracking Total 15 | . 6 6 5 9 5 1 3 15 Tactical Retreats 19 | . 2 4 2 3 1 . . 7 Traps | -11 -10 -9 -8 -7 -6 -5 -4 -3 ------- Run | Scr Mat Mat Mat Fac Fac Fac Fac Res Traps Triggered 12 | . 1 4 3 1 2 . 1 . Indirectly . | . . . . . . . . . Trap Hack Attempts . | . . . . . . . . . Triggered . | . . . . . . . . . Disarmed . | . . . . . . . . . Reprogrammed . | . . . . . . . . . Reused . | . . . . . . . . . Traps Extracted . | . . . . . . . . . Installed . | . . . . . . . . . Triggered . | . . . . . . . . . Machines | -11 -10 -9 -8 -7 -6 -5 -4 -3 ---------- Run | Scr Mat Mat Mat Fac Fac Fac Fac Res Machines Disabled 12 | . . . 9 3 . . . . Max in Single Turn 4 | . . . 4 2 . . . . Garrison Access 1 | . . . 1 . . . . . Machines Sabotaged . | . . . . . . . . . Garrisons Compromised . | . . . . . . . . . Overloaded Fab Kills . | . . . . . . . . . Fab Network Shutdowns . | . . . . . . . . . Hacking | -11 -10 -9 -8 -7 -6 -5 -4 -3 --------- Run | Scr Mat Mat Mat Fac Fac Fac Fac Res Machines Accessed 41 | . 3 8 11 8 4 2 4 1 Terminals 29 | . 3 6 9 4 2 2 2 1 Fabricators 4 | . . . . 2 1 . 1 . Repair Stations 2 | . . . 1 . . . 1 . Recycling Units 1 | . . . . 1 . . . . Scanalyzers 3 | . . 2 . . 1 . . . Garrison Access 2 | . . . 1 1 . . . . Total Hacks 99 | . 9 27 22 19 8 5 8 1 Successful 47 | . 6 15 6 7 4 3 6 . Failed 52 | . 3 12 16 12 4 2 2 1 Catastrophic 13 | . . 3 4 2 2 . 2 . Database Lockouts . | . . . . . . . . . Manual 70 | . 8 22 16 13 3 4 4 . Terminals 76 | . 9 22 19 13 3 5 4 1 Fabricators 8 | . . . . 3 3 . 2 . Repair Stations 3 | . . . 1 . . . 2 . Recycling Units 1 | . . . . 1 . . . . Scanalyzers 7 | . . 5 . . 2 . . . Garrison Access 4 | . . . 2 2 . . . . Terminal Hacks 22 | . 3 9 5 2 . 2 1 . Part Schematic 7 | . . 5 2 . . . . . Level Access Points 2 | . 1 . . . . 1 . . Terminal Index 1 | . . . . 1 . . . . Fabricator Index 3 | . . . 1 1 . . 1 . Scanalyzer Index 1 | . . 1 . . . . . . Alert Level 1 | . . . . . . 1 . . Unreport Threat 2 | . 1 . 1 . . . . . Recall Investigation 1 | . . 1 . . . . . . Recall Reinforcements 1 | . . 1 . . . . . . Hauler Manifests 3 | . 1 1 1 . . . . . Fabricator Hacks 6 | . . . . 2 2 . 2 . Load Schematic 3 | . . . . 1 1 . 1 . Build 3 | . . . . 1 1 . 1 . Repair Station Hacks 2 | . . . . . . . 2 . Scan Component 1 | . . . . . . . 1 . Repair 1 | . . . . . . . 1 . Recycling Unit Hacks 1 | . . . . 1 . . . . Report Inventory 1 | . . . . 1 . . . . Scanalyzer 7 | . . 5 . . 2 . . . Insert Component 4 | . . 3 . . 1 . . . Analyze 3 | . . 2 . . 1 . . . Garrison Access Hacks 1 | . . . 1 . . . . . Seal Access 1 | . . . 1 . . . . . Unauthorized Hacks 8 | . 3 1 . 2 . 1 1 . Terminals 8 | . 3 1 . 2 . 1 1 . Botnet 7 | . 2 1 . 2 . 1 1 . Operators 1 | . 1 . . . . . . . Fabricators . | . . . . . . . . . Repair Stations . | . . . . . . . . . Recycling Units . | . . . . . . . . . Scanalyzers . | . . . . . . . . . Garrison Access . | . . . . . . . . . Data Cores Recovered 1 | . . . . 1 . . . . Used 1 | . . . . 1 . . . . Hacking Detections 40 | . 3 8 11 7 4 2 4 1 Full Trace Events 1 | . . 1 . . . . . . Feedback Events . | . . . . . . . . . Feedback Blocked . | . . . . . . . . . Robot Schematics Acquired . | . . . . . . . . . Robots Built . | . . . . . . . . . Matter . | . . . . . . . . . Time . | . . . . . . . . . Total Robot Build Rating . | . . . . . . . . . Part Schematics Acquired 9 | . . 6 2 . 1 . . . Parts Built 3 | . . . . 1 1 . 1 . Matter 518 | . . . . 146 186 . 186 . Time 221 | . . . . 73 49 . 99 . Total Part Build Rating 7 | . . . . 3 2 . 2 . Parts Repaired 1 | . . . . . . . 1 . Time 38 | . . . . . . . 38 . Parts Recycled . | . . . . . . . . . Recycled Matter . | . . . . . . . . . Retrieved Matter . | . . . . . . . . . Retrieved Components . | . . . . . . . . . Parts Scanalyzed 3 | . . 2 . . 1 . . . Part Schematics Acquired 3 | . . 2 . . 1 . . . Parts Damaged . | . . . . . . . . . Bothacking | -11 -10 -9 -8 -7 -6 -5 -4 -3 ------------ Run | Scr Mat Mat Mat Fac Fac Fac Fac Res Used RIF Installer . | . . . . . . . . . Robots Hacked . | . . . . . . . . . Non-combat . | . . . . . . . . . Combat . | . . . . . . . . . Robot Hacks Applied . | . . . . . . . . . Relay Couplers Released . | . . . . . . . . . Robots Rewired . | . . . . . . . . . Allies Hacked . | . . . . . . . . . Hacks Repelled . | . . . . . . . . . Allies | -11 -10 -9 -8 -7 -6 -5 -4 -3 -------- Run | Scr Mat Mat Mat Fac Fac Fac Fac Res Total Allies . | . . . . . . . . . Largest Group . | . . . . . . . . . Highest-Rated Group . | . . . . . . . . . Highest-Rated Ally . | . . . . . . . . . Total Orders . | . . . . . . . . . Ally Attacks . | . . . . . . . . . Total Damage . | . . . . . . . . . Kills . | . . . . . . . . . Allies Corrupted . | . . . . . . . . . Allies Melted . | . . . . . . . . . Intel | -11 -10 -9 -8 -7 -6 -5 -4 -3 ------- Run | Scr Mat Mat Mat Fac Fac Fac Fac Res Robot Analysis Total . | . . . . . . . . . Derelict Logs Recovered . | . . . . . . . . . Drone Launches . | . . . . . . . . . Drone Recoveries . | . . . . . . . . . Exploration | -11 -10 -9 -8 -7 -6 -5 -4 -3 ------------- Run | Scr Mat Mat Mat Fac Fac Fac Fac Res Turns Passed 7997 | 68 654 2125 1220 2277 527 145 254 727 Spaces Moved 6406 | 61 403 992 660 1330 578 338 558 1486 Core 164 | 30 . . . . . . . 134 Treads 1068 | . . 544 415 109 . . . . Legs 2491 | 31 403 448 245 1221 143 . . . Wheels . | . . . . . . . . . Hover 21 | . . . . . . . . 21 Flight 2662 | . . . . . 435 338 558 1331 Fastest Speed 28 | 50 120 120 120 120 29 34 30 28 Average Speed 95 | 86 120 168 145 136 61 34 33 31 Slowest Speed 300 | 120 120 200 210 220 210 34 34 300 Overloaded Moves . | . . . . . . . . . Propulsion Burnouts . | . . . . . . . . . Robots Hopped 7 | . . . . . . . 3 4 Cave-ins Triggered . | . . . . . . . . . Exploration Rate (%) 31 | 3 56 68 61 35 15 6 10 31 Regions Visited 8 Branch Regions . Pre-discovered Areas . | . . . . . . . . . Known Exits Taken 7 | . 1 1 1 1 1 1 1 . Unknown Exits Taken 1 | 1 . . . . . . . . Scrap Searched . | . . . . . . . . . Spaces Dug 9 | . . . . . 2 . . 7 Terrain Destroyed 300 | . . 63 68 92 2 . . 75 Melee 9 | . . . . . 2 . . 7 Projectile 15 | . . 3 7 4 . . . 1 AOE 276 | . . 60 61 88 . . . 67 Terrain Rammed . | . . . . . . . . . Walls Destroyed . | . . . . . . . . . Machines Disabled . | . . . . . . . . . Actions | -11 -10 -9 -8 -7 -6 -5 -4 -3 --------- Run | Scr Mat Mat Mat Fac Fac Fac Fac Res Total 7655 | 74 512 1262 808 1608 745 366 618 1662 Wait 613 | . 59 129 47 103 122 28 47 78 Move 6384 | 60 402 991 659 1329 577 337 551 1478 Hop 7 | . . . . . . . 3 4 Pick Up 79 | 8 4 21 12 13 10 . . 11 Fast Attach 41 | 4 1 2 9 17 2 1 2 3 Attach 39 | 2 . 7 1 3 12 . . 14 Detach 6 | . . 1 . . 2 . . 3 Swap 39 | . 6 11 6 14 2 . . . Drop 79 | . 8 9 16 26 12 . . 8 Fire 325 | . 32 85 58 101 4 . . 45 Melee 28 | . . 6 . . 2 . 2 18 Ram . | . . . . . . . . . Kick . | . . . . . . . . . Crush . | . . . . . . . . . Escape Stasis 15 | . . . . 2 . . 13 . Rewire . | . . . . . . . . . Trap . | . . . . . . . . . Miscellaneous . | . . . . . . . . . Route ------- -11/Scrapyard -10/Materials (discovered 4 exits: *Mat x3 / [*Min]) -9/Materials (discovered 4 exits: *Mat x3 / *Min) -8/Materials -7/Factory (discovered 6 exits: *Fac x2 / *Sto x2 / *Low x2) -6/Factory -5/Factory (discovered 4 exits: *Fac x4) -4/Factory -3/Research History --------- Turn | Location | Event 9 | -11/Scrapyard | Discovered new exit (range 15) 69 | -11/Scrapyard | Entered Materials 296 | -10/Materials | Discovered new exit (range 15) 325 | -10/Materials | Build established: Mutant 635 | -10/Materials | Identified exit to Materials 723 | -10/Materials | Entered another Materials area 723 | -9/Materials | Evolved 2 slots: Utility x2 1522 | -9/Materials | Build established: Hauler-Mutant 1621 | -9/Materials | Discovered new exit (range 16) 1651 | -9/Materials | Identified exit to Materials 1839 | -9/Materials | Discovered exit to Materials (range 5) 1976 | -9/Materials | Discovered new exit (range 16) 2001 | -9/Materials | Identified exit to Mines 2254 | -9/Materials | Discovered exit to Materials (range 12) 2281 | -9/Materials | Core integrity fell below 50% 2319 | -9/Materials | Lost 3 parts (1n2w) 2848 | -9/Materials | Entered another Materials area 2848 | -8/Materials | Evolved 2 slots: Propulsion x2 3394 | -8/Materials | Garrison activated, responded to threat 3848 | -8/Materials | Discovered new exit (range 13) 4064 | -8/Materials | Identified exit to Factory 4068 | -8/Materials | Entered Factory 4068 | -7/Factory | Evolved 2 slots: Power x1, Propulsion x1 4164 | -7/Factory | Discovered new exit (range 12) 4244 | -7/Factory | Identified exit to Storage 4532 | -7/Factory | Discovered exit to Storage (range 10) 4853 | -7/Factory | Discovered new exit (range 15) 4919 | -7/Factory | Identified exit to Lower Caves 5204 | -7/Factory | Discovered new exit (range 16) 5256 | -7/Factory | Identified exit to Factory 5567 | -7/Factory | Fabricated Hacking Suite? 5681 | -7/Factory | Destroyed 7 combat bots 5974 | -7/Factory | Discovered exit to Lower Caves (range 15) 6140 | -7/Factory | Garrison activated, responded to threat 6173 | -7/Factory | Destroyed 7 combat bots 6213 | -7/Factory | Discovered exit to Factory (range 5) 6345 | -7/Factory | Entered another Factory area 6345 | -6/Factory | Evolved 2 slots: Utility x2 6578 | -6/Factory | Fabricated Imp. Flight Unit (x1) 6695 | -6/Factory | First assault squad dispatched 6862 | -6/Factory | Discovered new exit (range 11) 6871 | -6/Factory | Identified exit to Factory 6872 | -6/Factory | Entered another Factory area 6872 | -5/Factory | Evolved 2 slots: Propulsion x1, Utility x1 6891 | -5/Factory | Identified exit to Factory 7017 | -5/Factory | Entered another Factory area 7017 | -4/Factory | Evolved 2 slots: Propulsion x1, Utility x1 7093 | -4/Factory | Repaired Lgt. Nuclear Core 7152 | -4/Factory | Build established: Hacker-Mutant 7180 | -4/Factory | Discovered new exit (range 6) 7194 | -4/Factory | Identified exit to Research 7210 | -4/Factory | Fabricated Imp. Flight Unit? 7271 | -4/Factory | Entered Research 7271 | -3/Research | Evolved 2 slots: Power x1, Propulsion x1 7524 | -3/Research | Build established: Hacker-Sprinter 7800 | -3/Research | Destroyed 10 combat bots 7808 | -3/Research | Lost 4 parts (1p1n2u) 7843 | -3/Research | Found Prototype Launcher 7872 | -3/Research | Identified Hellfire Missile Launcher 7927 | -3/Research | Core integrity fell below 50% 7936 | -3/Research | Lost 8 parts (3n3u2w) 7986 | -3/Research | Core integrity fell below 20% 7998 | -3/Research | Destroyed by G-67 Veteran with Plasma Rifle Last Messages --------------- 07905_ Nuclear Pulse Array destroyed. 07905_ Slug penetrates Wall. 07912_ The unstable cave ceiling collapses. 07912_ Dropped Antimatter Reactor. 07916_ U-05 Engineer lays Concrete. 07918_ The unstable cave ceiling collapses. 07918_ U-05 Engineer lays Concrete. 07919_ U-05 Engineer builds a Wall. 07919_ Penetrated by Slug. 07920_ Slug penetrates Wall. 07923_ Penetrated by Slug. 07923_ Slug penetrates Wall. 07925_ O VFJ 6 QGZCS|IWN/Q%YLI18OXN3&SR4Y|1D 07926_ Penetrated by Slug. 07926_ Slug penetrates Wall. 07926_ Penetrated by Slug. 07929_ Slug penetrates Wall. 07961_ Hacking Suite destroyed. 07974_ System corrupted: Energy discharge (-36). 07993_ System corrupted: Component data lost. Map ----- +----------------------------------------------------+ | ??????# #????????# # #????????????????? | | ??????# #????????# # #????????????????? | | ????### ###??????# + #????????????????? | | ????# #??????# # #????????????????? | | ##### #??????# # #????????????????? | | #??????# ?# #????????????????? | | ##### #??????# | ?# #????????????????? | | ????# #??????########### #????????????????? | | ????#######???????# ! # #????????????????? | | ??????????????????# + #????????????????? | | ??????????????????# ! # #????????????????? | | ??????????????????# # #????????????????? | | ??????????????????# """ ?# #????????????????? | | ??????????????????# """ ?# #????????????????? | | ??????????????????# """??# #????????????????? | | ??????????????????# ??# ########## ?????? | | ????????????????????? ???# ????? | | ??????###????????????###???# ????? | | ?????? ??????????????????# ????? | | ## ??? ??????????????????# ????? | | ? ?"" "????????????###### #############????? | | ?# """ "????????????#! # # ???? | | ?# """ "????????????# # # ?????? | | ?# ? #???????# # # ??????? | | ?# #########gg # # "" "???????? | | ?# """ + + g@ # + """ ""??????? | | ??[* """ # ##### # g # # "F ""??????? | | ???? """ ?# #####+# ! ## ### """ ""??????? | | ????? ??# # # ## #?# """ ""??????? | | ?????? ???# # # ## #?# """ ???????? | | ####?###+###### # =####### #?# ???????? | | ?# / #?????# #?# ????????? | | # ####### !#?????# #?#####+###????????? | | # #?????# #?????# #?????# ############ | | + #?????#######?????# #?????# # | | # #?????????????????# #?????# # | | ]# #?????????????????# #?????# # """ """ | | ?# #???????????????### ####### # """ """ | | ####?# #???????????????# # """ """ | | ##???# #???????????????# # | | ??# #???????????????# + | | ??# #???????????????# # """ """ | | ?# #???????????????# ######## """ """ | | ?# #???????????????# #??????# """ """ | | # ##########+###### #??????# | | # #??????# | | + ################+## | | # ??? | | # #####+?????????? | | ?# ###+############+##?????????????? | +----------------------------------------------------+ Best States ------------- Heat Dissipation 46 Energy Generation 45 Energy Capacity 520 Matter Stores 300 Matter Capacity 300 Sight Range 16 Robot Scan Range 16 Terrain Scan Density 10 Power Amplification 20 Armor Coverage 150 Evasion (%) 64 Recoil Reduction 4 Offensive Hacking 30 Item Schematics ----------------- Imp. Sensor Array | -9/Materials | Hacked Med. Storage Unit | -9/Materials | Hacked Hvy. Assault Rifle | -9/Materials | Hacked Imp. Signal Interpreter | -9/Materials | Hacked Hacking Suite | -9/Materials | Scanalyzed Lgt. Nuclear Core | -9/Materials | Scanalyzed Imp. Flight Unit | -8/Materials | Hacked Adv. Signal Interpreter | -8/Materials | Hacked System Shield | -6/Factory | Scanalyzed Robot Schematics ------------------ None Fabricated ------------ Hacking Suite | x1 | -7/Factory Imp. Flight Unit | x1 | -6/Factory Imp. Flight Unit | x1 | -4/Factory Alien Tech Used ----------------- None Achievements -------------- None Challenges ------------ None Game ------ Seed CatalystMicroHammer Manual? 0 Play Time 02:16:11 Cumulative 57.2 hours Start 2021.04.22 @ 22:53:05 End 2021.04.23 @ 15:30:46 Sessions 5 Manual Loads 0 Difficulty Rogue Special Mode None Game No. 28 Rogue 25 Adventurer 3 Explorer 0 Win Type - Total 2 Types 2/0/0/0/0/0/0/0/0 Lore% 23 Gallery% 32 Achievement% 29 Wizard Run 0 Options --------- ASCII 0 Keyboard 0 Movement Mouse Keybinds 0 Fullscreen 1 Font 24/Terminus Map View 76x50 Tactical HUD 1 Map Filters NONE Filters NONE Steam 1 RUN: bff6d771-cf02-46e9-8457-0bc82de3267d